fUSD/lending_fUSD_20250226
["ID","MTS","AMOUNT","RATE_DAILY","PERIOD"]
[354544390,1740567047476,-500.0,0.00041095,14]
[354544391,1740567047485,-500.0,0.00041095,14]
[354544392,1740567047496,-500.0,0.00041095,14]
[354544393,1740567047506,-293.18490707,0.00041095,14]
[354544394,1740567047517,-393.67513432,0.00041095,14]
[354544395,1740567047527,-554.27929309,0.00041095,14]
[354544396,1740567047538,-500.0,0.00041095,14]
[354544397,1740567047549,-500.0,0.00041095,14]
[354544398,1740567047559,-500.0,0.00041095,14]
[354544399,1740567047569,-500.0,0.00041095,14]
[354544400,1740567047578,-500.0,0.00041095,14]
[354544401,1740567047587,-500.0,0.00041095,14]
[354544402,1740567047596,-500.0,0.00041095,14]
[354544403,1740567047606,-500.0,0.00041095,14]
[354544404,1740567047617,-500.0,0.00041095,14]
[354544405,1740567047626,-504.65208749,0.00041095,14]
[354544406,1740567047635,-500.0,0.00041095,14]
[354544407,1740567047644,-500.0,0.00041095,14]
[354544408,1740567047653,-500.0,0.00041095,14]
[354544409,1740567047663,-500.0,0.00041095,14]
[354544410,1740567047672,-504.08493058,0.00041095,14]
[354544411,1740567047681,-500.0,0.00041095,14]
[354544412,1740567047690,-500.0,0.00041095,14]
[354544413,1740567047700,-501.13978297,0.00041095,14]
[354544414,1740567047710,-500.67755538,0.00041095,14]
[354544415,1740567047719,-500.80290021,0.00041095,14]
[354544416,1740567047728,-500.0,0.00041095,14]
[354544417,1740567047737,-500.0,0.00041095,14]
[354544418,1740567047746,-500.0,0.00041095,14]
[354544419,1740567047756,-601.58,0.00041095,14]
[354544420,1740567047766,-1058.71471992,0.00041095,14]
[354545272,1740567514743,232.4308015,0.00024867,120]
[354545279,1740568231962,-250.0,0.00021,2]
[354545280,1740568231972,-250.0,0.00022,2]
[354545281,1740568231982,-300.0,0.00023,2]
[354545282,1740568231992,-250.0,0.000231,2]
[354545283,1740568232001,-250.0,0.00024931,2]
[354545284,1740568232012,-162.19,0.00026849,2]
[354545285,1740568232021,-559.3131921,0.00026886,2]
[354545286,1740568232031,-150.0,0.00026985,2]
[354545287,1740568232040,-800.0,0.00026986,120]
[354545288,1740568232050,-991.5368079,0.00026986,30]
[354545289,1740568232065,-4053.66064304,0.00026986,30]
[354545290,1740568232076,-2139.23480222,0.00026986,30]
[354545291,1740568232095,-12001.10781,0.00026986,30]
[354545292,1740568232123,-67081.22770283,0.00026986,30]
[354545293,1740568232132,-206.5846049,0.000289,5]
[354545294,1740568232142,-824.51,0.00037511,2]
[354545295,1740568232151,-650.61,0.00038427,2]
[354545296,1740568232160,-299.99,0.00038678,120]
[354545297,1740568232170,-150.99,0.00038678,2]
[354545298,1740568232179,-36281.63,0.00038678,30]
[354545300,1740568232188,-150.99,0.00038678,30]
[354545302,1740568232197,-857.0,0.00039015,120]
[354545303,1740568232207,-500.0,0.00039206,2]
[354545304,1740568232218,-1685.04,0.00039253,2]
[354545305,1740568232227,-2390.437,0.00039314,54]
[354545306,1740568232236,-184.164,0.00039314,54]
[354545307,1740568232245,-871.84,0.00039354,120]
[354545308,1740568232255,-150.0,0.00039414,30]
[354545309,1740568232264,-150.0,0.00039414,30]
[354545310,1740568232273,-940.01631976,0.00039414,30]
[354545311,1740568232283,-8335.45448702,0.00039414,30]
[354545313,1740568232292,-150.0,0.00039414,30]
[354545315,1740568232301,-858.93264154,0.00039414,30]
[354545317,1740568232311,-297.67,0.00039471,2]
[354545319,1740568232320,-297.67,0.00039762,2]
[354545320,1740568232330,-824.51,0.00039774,2]
[354545323,1740568232339,-325.2604,0.00039799,2]
[354545325,1740568232349,-693.28488955,0.00039899,2]
[354545327,1740568232359,-543.0462,0.000399,120]
[354545329,1740568232369,-1000.0,0.00040035,2]
[354545331,1740568232378,-297.67,0.00040052,2]
[354545333,1740568232387,-384.5202639,0.00040251,4]
[354545334,1740568232397,-297.67,0.00040343,2]
[354545337,1740568232406,-307.48669864,0.00040358,2]
[354545339,1740568232416,-325.53,0.00040367,2]
[354545341,1740568232425,-168.62,0.00040393,2]
[354545343,1740568232434,-297.67,0.00040634,2]
[354545345,1740568232444,-1060.0,0.00040637,5]
[354545346,1740568232453,-307.48669864,0.00040722,2]
[354545347,1740568232462,-151.29,0.00040822,2]
[354545348,1740568232472,-297.67,0.00040925,2]
[354545349,1740568232482,-965.46,0.00040959,2]
[354545350,1740568232492,-1213.3443,0.00040985,2]
[354545351,1740568232502,-31237.2098,0.00040985,2]
[354545352,1740568232511,-1263.49283312,0.00040985,15]
[354545353,1740568232520,-302.16779834,0.00040985,2]
[354545354,1740568232529,-201.98019752,0.00040985,13]
[354545355,1740568232536,-1077.20631274,0.00040994,15]
[354545356,1740568232542,-221.0,0.00040995,2]
[354545357,1740568232549,-448.45040852,0.00040995,15]
[354545358,1740568232556,-211.54966406,0.00040995,2]
[354545359,1740568232564,-12151.0,0.00041,120]
[354545360,1740568232571,-150.0,0.00041,37]
[354545361,1740568232580,-3677.13367,0.00041,39]
[354545362,1740568232586,-529.2,0.00041069,9]
[354545363,1740568232594,-1263.49283305,0.00041077,15]
[354545364,1740568232600,-237963.480386,0.00041085,4]
[354545365,1740568232609,-54737.1702713,0.00041085,4]
[354545366,1740568232616,-987.88,0.00041085,120]
[354545367,1740568232623,-987.88,0.00041085,120]
[354545368,1740568232630,-987.88,0.00041085,120]
[354545369,1740568232640,-987.88,0.00041085,120]
[354545370,1740568232649,-984.59,0.00041085,120]
[354545371,1740568232658,-688.06,0.00041085,120]
[354545372,1740568232668,-1975.14,0.00041085,120]
[354545373,1740568232677,-86935.505725,0.00041085,4]
[354545374,1740568232687,-155.85666796,0.00041085,7]
[354545375,1740568232696,-1077.20631268,0.00041085,15]
[354545376,1740568232705,-500.0,0.00041094,31]
[354545377,1740568232715,-500.0,0.00041094,31]
[354545378,1740568232724,-500.0,0.00041094,31]
[354545379,1740568232733,-500.0,0.00041094,31]
[354545380,1740568232742,-500.0,0.00041094,31]
[354545381,1740568232752,-500.0,0.00041094,31]
[354545382,1740568232761,-500.0,0.00041094,31]
[354545383,1740568232770,-500.0,0.00041094,31]
[354545384,1740568232780,-593.49532166,0.00041094,31]
[354545385,1740568232790,-500.0,0.00041094,31]
[354545386,1740568232800,-500.0,0.00041094,31]
[354545387,1740568232810,-300.0,0.00041094,31]
[354545388,1740568232821,-273.79466851,0.00041094,31]
[354545389,1740568232830,-150.0,0.00041094,30]
[354545390,1740568232840,-202.95098844,0.00041095,5]
[354545391,1740568232850,-1607.78,0.00041095,14]
[354545392,1740568232859,-500.0,0.00041095,14]
[354545393,1740568232869,-500.0,0.00041095,14]
[354545394,1740568232878,-500.0,0.00041095,14]
[354545395,1740568232887,-500.0,0.00041095,14]
[354545396,1740568232897,-500.0,0.00041095,14]
[354545397,1740568232906,-500.0,0.00041095,14]
[354545398,1740568232915,-500.0,0.00041095,14]
[354545399,1740568232925,-500.0,0.00041095,14]
[354545400,1740568232934,-564.54278989,0.00041095,14]
[354545401,1740568232944,-500.0,0.00041095,14]
[354545402,1740568232954,-500.0,0.00041095,14]
[354545403,1740568232964,-503.13440255,0.00041095,14]
[354545404,1740568232973,-428.09553095,0.00041095,14]
[354545405,1740568232983,-500.0,0.00041095,14]
[354545406,1740568232992,-500.0,0.00041095,14]
[354545407,1740568233001,-513.79692244,0.00041095,14]
[354545408,1740568233011,-503.75790279,0.00041095,14]
[354545409,1740568233020,-500.0,0.00041095,14]
[354545410,1740568233030,-500.0,0.00041095,14]
[354545411,1740568233040,-335.13415724,0.00041095,14]
[354545412,1740568233049,-500.0,0.00041095,14]
[354545413,1740568233059,-1380.72,0.00041095,14]
[354545414,1740568233069,-500.0,0.00041095,14]
[354545415,1740568233078,-500.0,0.00041095,14]
[354545416,1740568233088,-500.0,0.00041095,14]
[354545417,1740568233098,-500.0,0.00041095,14]
[354545418,1740568233108,-500.0,0.00041095,14]
[354545419,1740568233118,-500.0,0.00041095,14]
[354545420,1740568233128,-500.0,0.00041095,14]
[354545421,1740568233138,-500.0,0.00041095,14]
[354545422,1740568233148,-500.0,0.00041095,14]
[354545423,1740568233158,-500.0,0.00041095,14]
[354545424,1740568233169,-500.0,0.00041095,14]
[354545425,1740568233179,-1134.59,0.00041095,14]
[354545426,1740568233190,-500.0,0.00041095,14]
[354545427,1740568233200,-500.0,0.00041095,14]
[354545428,1740568233209,-500.0,0.00041095,14]
[354545429,1740568233219,-500.0,0.00041095,14]
[354545430,1740568233229,-500.0,0.00041095,14]
[354545431,1740568233239,-500.0,0.00041095,14]
[354545432,1740568233249,-500.0,0.00041095,14]
[354545433,1740568233258,-500.0,0.00041095,14]
[354545434,1740568233268,-1768.5,0.00041095,14]
[354545435,1740568233277,-500.0,0.00041095,14]
[354545436,1740568233287,-500.0,0.00041095,14]
[354545437,1740568233296,-500.0,0.00041095,14]
[354545438,1740568233305,-500.0,0.00041095,14]
[354545439,1740568233315,-500.0,0.00041095,14]
[354545440,1740568233324,-500.0,0.00041095,14]
[354545441,1740568233334,-500.0,0.00041095,14]
[354545442,1740568233343,-500.0,0.00041095,14]
[354545443,1740568233353,-500.0,0.00041095,14]
[354545444,1740568233363,-500.0,0.00041095,14]
[354545445,1740568233372,-911.37,0.00041095,14]
[354545446,1740568233382,-710.61,0.00041095,14]
[354545447,1740568233392,-500.0,0.00041095,14]
[354545448,1740568233401,-1514.9,0.00041095,14]
[354545449,1740568233412,-800.47,0.00041095,14]
[354545450,1740568233421,-1114.13,0.00041095,14]
[354545451,1740568233430,-500.0,0.00041095,14]
[354545452,1740568233440,-500.0,0.00041095,14]
[354545453,1740568233450,-601.47,0.00041095,14]
[354545454,1740568233460,-500.0,0.00041095,14]
[354545455,1740568233470,-500.0,0.00041095,14]
[354545456,1740568233481,-500.0,0.00041095,14]
[354545457,1740568233494,-1099.68,0.00041095,14]
[354545458,1740568233504,-515.3575309,0.00041095,14]
[354545459,1740568233514,-500.0,0.00041095,14]
[354545460,1740568233523,-500.0,0.00041095,14]
[354545461,1740568233532,-500.0,0.00041095,14]
[354545462,1740568233541,-1964.52,0.00041095,14]
[354545463,1740568233552,-500.0,0.00041095,14]
[354545464,1740568233563,-718.02,0.00041095,14]
[354545465,1740568233573,-500.0,0.00041095,14]
[354545466,1740568233583,-1256.08,0.00041095,14]
[354545467,1740568233592,-500.0,0.00041095,14]
[354545468,1740568233602,-500.0,0.00041095,14]
[354545469,1740568233612,-500.0,0.00041095,14]
[354545470,1740568233621,-500.0,0.00041095,14]
[354545471,1740568233631,-500.0,0.00041095,14]
[354545472,1740568233641,-500.0,0.00041095,14]
[354545473,1740568233651,-669.57,0.00041095,14]
[354545474,1740568233660,-851.82,0.00041095,14]
[354545475,1740568233670,-500.0,0.00041095,14]
[354545476,1740568233680,-1631.79,0.00041095,14]
[354545477,1740568233689,-500.0,0.00041095,14]
[354545478,1740568233699,-500.0,0.00041095,14]
[354545479,1740568233708,-500.0,0.00041095,14]
[354545480,1740568233718,-500.0,0.00041095,14]
[354545481,1740568233728,-853.78,0.00041095,14]
[354545482,1740568233737,-500.0,0.00041095,14]
[354545483,1740568233747,-500.0,0.00041095,14]
[354545484,1740568233756,-500.0,0.00041095,14]
[354545485,1740568233766,-500.0,0.00041095,14]
[354545486,1740568233775,-500.0,0.00041095,14]
[354545487,1740568233784,-500.0,0.00041095,14]
[354545488,1740568233794,-1342.53,0.00041095,14]
[354545489,1740568233804,-795.09,0.00041095,14]
[354545490,1740568233813,-500.0,0.00041095,14]
[354545491,1740568233823,-731.71,0.00041095,14]
[354545492,1740568233832,-500.0,0.00041095,14]
[354545493,1740568233842,-500.0,0.00041095,14]
[354545494,1740568233851,-500.0,0.00041095,14]
[354545495,1740568233861,-1559.64,0.00041095,14]
[354545496,1740568233871,-500.0,0.00041095,14]
[354545497,1740568233881,-1657.18,0.00041095,14]
[354545498,1740568233891,-531.04065986,0.00041095,14]
[354545499,1740568233901,-1210.67,0.00041095,14]
[354545500,1740568233910,-500.0,0.00041095,14]
[354545501,1740568233920,-1005.23,0.00041095,14]
[354545502,1740568233930,-500.0,0.00041095,14]
[354545503,1740568233939,-501.05487313,0.00041095,14]
[354545504,1740568233949,-500.0,0.00041095,14]
[354545505,1740568233959,-660.11,0.00041095,14]
[354545506,1740568233969,-1463.02,0.00041095,14]
[354545507,1740568233979,-500.0,0.00041095,14]
[354545508,1740568233989,-500.0,0.00041095,14]
[354545509,1740568233999,-500.0,0.00041095,14]
[354545510,1740568234009,-1747.22,0.00041095,14]
[354545511,1740568234096,-582.17,0.00041095,14]
[354545512,1740568234106,-546.78,0.00041095,14]
[354545513,1740568234116,-622.3,0.00041095,14]
[354545514,1740568234126,-500.0,0.00041095,14]
[354545515,1740568234135,-500.0,0.00041095,14]
[354545516,1740568234146,-194.19293087,0.00041095,14]
[354545517,1740568234159,-500.0,0.00041095,14]
[354545518,1740568234168,-500.0,0.00041095,14]
[354545519,1740568234178,-654.14,0.00041095,14]
[354545520,1740568234187,-521.41,0.00041095,14]
[354545521,1740568234197,-500.0,0.00041095,14]
[354545522,1740568234206,-1132.15,0.00041095,14]
[354545523,1740568234216,-917.36,0.00041095,14]
[354545524,1740568234226,-1199.04,0.00041095,14]
[354545525,1740568234235,-500.0,0.00041095,14]
[354545526,1740568234244,-500.0,0.00041095,14]
[354545527,1740568234253,-500.0,0.00041095,14]
[354545528,1740568234262,-500.0,0.00041095,14]
[354545529,1740568234272,-821.25,0.00041095,14]
[354545530,1740568234281,-500.0,0.00041095,14]
[354545531,1740568234291,-1684.94,0.00041095,14]
[354545532,1740568234301,-500.0,0.00041095,14]
[354545533,1740568234310,-1452.76,0.00041095,14]
[354545534,1740568234321,-500.0,0.00041095,14]
[354545535,1740568234331,-500.0,0.00041095,14]
[354545536,1740568234340,-500.0,0.00041095,14]
[354545537,1740568234349,-500.0,0.00041095,14]
[354545538,1740568234359,-500.0,0.00041095,14]
[354545539,1740568234368,-1550.68,0.00041095,14]
[354545540,1740568234377,-994.67,0.00041095,14]
[354545541,1740568234386,-500.0,0.00041095,14]
[354545542,1740568234396,-500.0,0.00041095,14]
[354545543,1740568234405,-500.0,0.00041095,14]
[354545544,1740568234414,-500.0,0.00041095,14]
[354545545,1740568234423,-500.0,0.00041095,14]
[354545546,1740568234433,-500.0,0.00041095,14]
[354545547,1740568234443,-1106.11,0.00041095,14]
[354545548,1740568234452,-500.0,0.00041095,14]
[354545549,1740568234461,-500.0,0.00041095,14]
[354545550,1740568234471,-500.0,0.00041095,14]
[354545551,1740568234481,-500.0,0.00041095,14]
[354545552,1740568234492,-500.0,0.00041095,14]
[354545553,1740568234501,-500.0,0.00041095,14]
[354545554,1740568234511,-1713.28,0.00041095,14]
[354545555,1740568234520,-1282.84,0.00041095,14]
[354545556,1740568234531,-500.0,0.00041095,14]
[354545557,1740568234540,-500.0,0.00041095,14]
[354545558,1740568234550,-500.0,0.00041095,14]
[354545559,1740568234560,-500.0,0.00041095,14]
[354545560,1740568234569,-507.35565486,0.00041095,14]
[354545561,1740568234578,-1205.8,0.00041095,14]
[354545562,1740568234588,-795.52,0.00041095,14]
[354545563,1740568234597,-500.0,0.00041095,14]
[354545564,1740568234607,-500.0,0.00041095,14]
[354545565,1740568234617,-150.0,0.00041095,14]
[354545566,1740568234626,-1145.82,0.00041095,14]
[354545567,1740568234635,-500.0,0.00041095,14]
[354545568,1740568234645,-640.38,0.00041095,14]
[354545569,1740568234655,-500.0,0.00041095,14]
[354545570,1740568234664,-1208.7,0.00041095,14]
[354545571,1740568234673,-500.0,0.00041095,14]
[354545572,1740568234682,-500.0,0.00041095,14]
[354545573,1740568234691,-650.65143821,0.00041095,14]
[354545574,1740568234701,-1127.85,0.00041095,14]
[354545575,1740568234710,-1681.91,0.00041095,14]
[354545576,1740568234719,-552.24,0.00041095,14]
[354545577,1740568234728,-500.0,0.00041095,14]
[354545578,1740568234737,-500.0,0.00041095,14]
[354545579,1740568234746,-593.57,0.00041095,14]
[354545580,1740568234755,-500.0,0.00041095,14]
[354545581,1740568234764,-500.0,0.00041095,14]
[354545582,1740568234774,-722.66,0.00041095,14]
[354545583,1740568234783,-500.0,0.00041095,14]
[354545584,1740568234792,-1870.71,0.00041095,14]
[354545585,1740568234801,-500.0,0.00041095,14]
[354545586,1740568234811,-162.029449,0.00041095,14]
[354545587,1740568234821,-818.81,0.00041095,14]
[354545588,1740568234830,-621.55652454,0.00041095,14]
[354545589,1740568234840,-500.0,0.00041095,14]
[354545590,1740568234850,-500.0,0.00041095,14]
[354545591,1740568234859,-2977.36,0.00041095,14]
[354545592,1740568234871,-156.374567,0.00041095,14]
[354545593,1740568234881,-500.0,0.00041095,14]
[354545594,1740568234891,-500.0,0.00041095,14]
[354545595,1740568234901,-659.61,0.00041095,14]
[354545596,1740568234910,-1303.85,0.00041095,14]
[354545597,1740568234919,-500.0,0.00041095,14]
[354545598,1740568234929,-859.08428,0.00041095,14]
[354545599,1740568234938,-502.62831232,0.00041095,14]
[354545600,1740568234947,-500.0,0.00041095,14]
[354545601,1740568234957,-500.0,0.00041095,14]
[354545602,1740568234966,-2608.94,0.00041095,14]
[354545603,1740568234975,-500.0,0.00041095,14]
[354545604,1740568234984,-500.0,0.00041095,14]
[354545605,1740568234993,-277.731064,0.00041095,14]
[354545606,1740568235002,-500.0,0.00041095,14]
[354545607,1740568235011,-500.0,0.00041095,14]
[354545608,1740568235021,-500.0,0.00041095,14]
[354545609,1740568235031,-500.0,0.00041095,14]
[354545610,1740568235040,-500.0,0.00041095,14]
[354545611,1740568235050,-388.03270123,0.00041095,14]
[354545612,1740568235059,-500.0,0.00041095,14]
[354545613,1740568235069,-500.0,0.00041095,14]
[354545614,1740568235078,-2089.65056,0.00041095,14]
[354545615,1740568235087,-1634.39,0.00041095,14]
[354545616,1740568235096,-500.0,0.00041095,14]
[354545617,1740568235105,-500.0,0.00041095,14]
[354545618,1740568235114,-2143.6,0.00041095,14]
[354545619,1740568235124,-732.88,0.00041095,14]
[354545620,1740568235133,-697.24,0.00041095,14]
[354545621,1740568235142,-500.0,0.00041095,14]
[354545622,1740568235151,-903.7,0.00041095,14]
[354545623,1740568235161,-500.0,0.00041095,14]
[354545624,1740568235170,-500.0,0.00041095,14]
[354545625,1740568235178,-1841.25,0.00041095,14]
[354545626,1740568235188,-500.0,0.00041095,14]
[354545627,1740568235197,-500.0,0.00041095,14]
[354545628,1740568235206,-1197.43,0.00041095,14]
[354545629,1740568235216,-500.0,0.00041095,14]
[354545630,1740568235225,-158.776428,0.00041095,14]
[354545631,1740568235235,-500.0,0.00041095,14]
[354545632,1740568235244,-500.0,0.00041095,14]
[354545633,1740568235253,-564.55387784,0.00041095,14]
[354545634,1740568235263,-2085.6,0.00041095,14]
[354545635,1740568235272,-510.76821501,0.00041095,14]
[354545636,1740568235281,-500.0,0.00041095,14]
[354545637,1740568235290,-500.0,0.00041095,14]
[354545638,1740568235299,-500.0,0.00041095,14]
[354545639,1740568235308,-505.08,0.00041095,14]
[354545640,1740568235318,-1860.37,0.00041095,14]
[354545641,1740568235327,-500.0,0.00041095,14]
[354545642,1740568235336,-1075.06,0.00041095,14]
[354545643,1740568235345,-552.80768524,0.00041095,14]
[354545644,1740568235355,-583.9,0.00041095,14]
[354545645,1740568235364,-500.0,0.00041095,14]
[354545646,1740568235374,-500.0,0.00041095,14]
[354545647,1740568235383,-500.0,0.00041095,14]
[354545648,1740568235392,-651.8,0.00041095,14]
[354545649,1740568235402,-502.85630333,0.00041095,14]
[354545650,1740568235412,-1024.02,0.00041095,14]
[354545651,1740568235422,-500.0,0.00041095,14]
[354545652,1740568235431,-503.71660003,0.00041095,14]
[354545653,1740568235440,-788.7,0.00041095,14]
[354545654,1740568235450,-1795.34,0.00041095,14]
[354545655,1740568235460,-566.79,0.00041095,14]
[354545656,1740568235469,-500.0,0.00041095,14]
[354545657,1740568235481,-500.0,0.00041095,14]
[354545658,1740568235491,-500.0,0.00041095,14]
[354545659,1740568235500,-500.0,0.00041095,14]
[354545660,1740568235509,-500.0,0.00041095,14]
[354545661,1740568235520,-897.39,0.00041095,14]
[354545662,1740568235529,-505.24921569,0.00041095,14]
[354545663,1740568235538,-500.0,0.00041095,14]
[354545664,1740568235547,-500.0,0.00041095,14]
[354545665,1740568235558,-500.0,0.00041095,14]
[354545666,1740568235567,-500.0,0.00041095,14]
[354545667,1740568235576,-917.47,0.00041095,14]
[354545668,1740568235585,-500.0,0.00041095,14]
[354545669,1740568235595,-500.0,0.00041095,14]
[354545670,1740568235605,-500.0,0.00041095,14]
[354545671,1740568235614,-2645.22,0.00041095,14]
[354545672,1740568235624,-1000.6546313,0.00041095,14]
[354545673,1740568235633,-500.0,0.00041095,14]
[354545674,1740568235644,-500.58855473,0.00041095,14]
[354545675,1740568235653,-2086.96,0.00041095,14]
[354545676,1740568235662,-500.0,0.00041095,14]
[354545677,1740568235671,-500.0,0.00041095,14]
[354545678,1740568235681,-500.0,0.00041095,14]
[354545679,1740568235690,-1612.41,0.00041095,14]
[354545680,1740568235699,-500.0,0.00041095,14]
[354545681,1740568235709,-500.0,0.00041095,14]
[354545682,1740568235718,-1542.16,0.00041095,14]
[354545683,1740568235727,-500.0,0.00041095,14]
[354545684,1740568235736,-500.0,0.00041095,14]
[354545685,1740568235745,-500.0,0.00041095,14]
[354545686,1740568235754,-500.0,0.00041095,14]
[354545687,1740568235763,-500.0,0.00041095,14]
[354545688,1740568235772,-500.0,0.00041095,14]
[354545689,1740568235781,-448.23814427,0.00041095,14]
[354545690,1740568235791,-500.0,0.00041095,14]
[354545691,1740568235800,-500.0,0.00041095,14]
[354545692,1740568235809,-500.0,0.00041095,14]
[354545693,1740568235818,-764.44,0.00041095,14]
[354545694,1740568235827,-500.0,0.00041095,14]
[354545695,1740568235836,-627.74137312,0.00041095,14]
[354545696,1740568235846,-500.0,0.00041095,14]
[354545697,1740568235855,-946.53,0.00041095,14]
[354545698,1740568235865,-500.85476903,0.00041095,14]
[354545699,1740568235874,-604.42,0.00041095,14]
[354545700,1740568235884,-500.0,0.00041095,14]
[354545701,1740568235893,-500.0,0.00041095,14]
[354545702,1740568235902,-150.0,0.00041095,14]
[354545703,1740568235912,-428.96303567,0.00041095,14]
[354545704,1740568235922,-500.0,0.00041095,14]
[354545705,1740568235931,-500.0,0.00041095,14]
[354545706,1740568235940,-1667.88,0.00041095,14]
[354545707,1740568235950,-500.0,0.00041095,14]
[354545708,1740568235959,-346.60439952,0.00041095,14]
[354545709,1740568235968,-1231.79,0.00041095,14]
[354545710,1740568235978,-1566.59,0.00041095,14]
[354545711,1740568235988,-1774.0,0.00041095,14]
[354545712,1740568235997,-527.24,0.00041095,14]
[354545713,1740568236007,-501.12126907,0.00041095,14]
[354545714,1740568236016,-1246.14,0.00041095,14]
[354545715,1740568236026,-500.0,0.00041095,14]
[354545716,1740568236035,-500.0,0.00041095,14]
[354545717,1740568236045,-500.0,0.00041095,14]
[354545718,1740568236055,-500.0,0.00041095,14]
[354545719,1740568236064,-500.0,0.00041095,14]
[354545720,1740568236073,-1971.17,0.00041095,14]
[354545721,1740568236082,-527.82,0.00041095,14]
[354545722,1740568236091,-500.0,0.00041095,14]
[354545723,1740568236101,-500.0,0.00041095,14]
[354545724,1740568236111,-1369.67,0.00041095,14]
[354545725,1740568236120,-500.0,0.00041095,14]
[354545726,1740568236130,-640.52,0.00041095,14]
[354545727,1740568236140,-500.0,0.00041095,14]
[354545728,1740568236150,-503.28244434,0.00041095,14]
[354545729,1740568236159,-500.0,0.00041095,14]
[354545730,1740568236168,-500.0,0.00041095,14]
[354545731,1740568236178,-548.0,0.00041095,14]
[354545732,1740568236187,-500.0,0.00041095,14]
[354545733,1740568236196,-500.0,0.00041095,14]
[354545734,1740568236205,-500.0,0.00041095,14]
[354545735,1740568236215,-500.0,0.00041095,14]
[354545736,1740568236224,-500.0,0.00041095,14]
[354545737,1740568236233,-2591.8,0.00041095,14]
[354545738,1740568236242,-500.0,0.00041095,14]
[354545739,1740568236251,-500.0,0.00041095,14]
[354545740,1740568236261,-500.0,0.00041095,14]
[354545741,1740568236270,-500.0,0.00041095,14]
[354545742,1740568236279,-848.62,0.00041095,14]
[354545743,1740568236288,-500.0,0.00041095,14]
[354545744,1740568236297,-500.0,0.00041095,14]
[354545745,1740568236307,-592.74,0.00041095,14]
[354545746,1740568236316,-1982.77,0.00041095,14]
[354545747,1740568236325,-2177.17,0.00041095,14]
[354545748,1740568236335,-500.0,0.00041095,14]
[354545749,1740568236343,-769.56,0.00041095,14]
[354545750,1740568236352,-500.0,0.00041095,14]
[354545751,1740568236361,-1561.63,0.00041095,14]
[354545752,1740568236370,-500.0,0.00041095,14]
[354545753,1740568236379,-500.0,0.00041095,14]
[354545754,1740568236387,-500.0,0.00041095,14]
[354545755,1740568236397,-500.0,0.00041095,14]
[354545756,1740568236406,-500.0,0.00041095,14]
[354545757,1740568236415,-591.09,0.00041095,14]
[354545758,1740568236424,-1843.5,0.00041095,14]
[354545759,1740568236434,-500.0,0.00041095,14]
[354545760,1740568236443,-1078.69,0.00041095,14]
[354545761,1740568236452,-1041.39,0.00041095,14]
[354545762,1740568236461,-500.0,0.00041095,14]
[354545763,1740568236470,-500.0,0.00041095,14]
[354545764,1740568236482,-1155.25,0.00041095,14]
[354545765,1740568236492,-500.0,0.00041095,14]